[Event "Titled Tuesday Blitz March 08 Early 2022"]
[White "Estrada Nieto, Julian"]
[Black "Petrova, Irina"]
[WhiteFideId "5101018"]
[BlackFideId "14124122"]
[WhiteElo "2246"]
[BlackElo "1993"]
[Result "1-0"]
[Round "08"]
[TimeControl "180+1"]
[Date "2022.03.09"]
[WhiteClock "0:00:19"]
[BlackClock "0:00:47"]

1. e4 {[%clk 0:03:00]}  d6 {[%clk 0:03:00]} 2. d4 {[%clk 0:03:00]}  Nf6 {[%clk 0:03:00]} 3. Nc3 {[%clk 0:03:00]}  e5 {[%clk 0:03:01]} 4. Nf3 {[%clk 0:03:00]}  Nbd7 {[%clk 0:03:01]} 5. Bc4 {[%clk 0:03:00]}  Be7 {[%clk 0:03:01]} 6. O-O {[%clk 0:03:01]}  O-O {[%clk 0:03:01]} 7. Re1 {[%clk 0:03:01]}  c6 {[%clk 0:03:00]} 8. a4 {[%clk 0:03:01]}  h6 {[%clk 0:02:57]} 9. b3 {[%clk 0:02:52]}  Re8 {[%clk 0:02:52]} 10. Bb2 {[%clk 0:02:50]}  Bf8 {[%clk 0:02:49]} 11. h3 {[%clk 0:02:36]}  Qc7 {[%clk 0:02:45]} 12. Qd2 {[%clk 0:02:32]}  b6 {[%clk 0:02:29]} 13. d5 {[%clk 0:02:30]}  Bb7 {[%clk 0:02:28]} 14. dxc6 {[%clk 0:02:25]}  Bxc6 {[%clk 0:02:28]} 15. Rad1 {[%clk 0:02:12]}  Nc5 {[%clk 0:02:26]} 16. Nd5 {[%clk 0:02:06]}  Bxd5 {[%clk 0:02:20]} 17. Bxd5 {[%clk 0:02:06]}  Rac8 {[%clk 0:02:08]} 18. Ba3 {[%clk 0:02:03]}  Nxd5 {[%clk 0:02:06]} 19. Qxd5 {[%clk 0:02:02]}  Qc6 {[%clk 0:01:57]} 20. Bxc5 {[%clk 0:01:55]}  Qxc5 {[%clk 0:01:51]} 21. Qxc5 {[%clk 0:01:47]}  Rxc5 {[%clk 0:01:52]} 22. c4 {[%clk 0:01:47]}  a6 {[%clk 0:01:49]} 23. Nd2 {[%clk 0:01:43]}  b5 {[%clk 0:01:46]} 24. axb5 {[%clk 0:01:43]}  axb5 {[%clk 0:01:47]} 25. Ra1 {[%clk 0:01:40]}  bxc4 {[%clk 0:01:46]} 26. Nxc4 {[%clk 0:01:40]}  d5 {[%clk 0:01:42]} 27. exd5 {[%clk 0:01:38]}  Rxd5 {[%clk 0:01:43]} 28. Ra2 {[%clk 0:01:14]}  Rb8 {[%clk 0:01:39]} 29. Rxe5 {[%clk 0:01:05]}  Rxe5 {[%clk 0:01:35]} 30. Nxe5 {[%clk 0:01:04]}  Rxb3 {[%clk 0:01:36]} 31. Ra8 {[%clk 0:01:02]}  Rb7 {[%clk 0:01:22]} 32. g3 {[%clk 0:01:00]}  f6 {[%clk 0:01:21]} 33. Ng6 {[%clk 0:00:58]}  Rf7 {[%clk 0:01:14]} 34. h4 {[%clk 0:00:58]}  h5 {[%clk 0:01:13]} 35. Kg2 {[%clk 0:00:49]}  f5 {[%clk 0:01:13]} 36. Kf3 {[%clk 0:00:45]}  Rf6 {[%clk 0:01:13]} 37. Nf4 {[%clk 0:00:42]}  g6 {[%clk 0:00:59]} 38. Nh3 {[%clk 0:00:38]}  Kg7 {[%clk 0:00:55]} 39. Ng5 {[%clk 0:00:35]}  Be7 {[%clk 0:00:51]} 40. Ra7 {[%clk 0:00:33]}  Rf7 {[%clk 0:00:51]} 41. Nxf7 {[%clk 0:00:32]}  Kxf7 {[%clk 0:00:50]} 42. Ra6 {[%clk 0:00:28]}  Bf6 {[%clk 0:00:47]} 43. Ke2 {[%clk 0:00:27]}  Kg7 {[%clk 0:00:47]} 44. Kd3 {[%clk 0:00:26]}  Kh6 {[%clk 0:00:47]} 45. Rxf6 {[%clk 0:00:19]} 1-0


[Site "https://www.chess.com"]

[Event "Titled Tuesday Blitz March 08 Early 2022"]
[White "Fiorito, Fabian"]
[Black "Nguyen, Thi Minh Oanh"]
[WhiteFideId "100200"]
[BlackFideId "12404080"]
[WhiteElo "2395"]
[BlackElo "1825"]
[Result "0-1"]
[Round "08"]
[TimeControl "180+1"]
[Date "2022.03.09"]
[WhiteClock "0:01:04"]
[BlackClock "0:00:20"]

1. d4 {[%clk 0:03:00]}  d5 {[%clk 0:02:57]} 2. Nc3 {[%clk 0:03:01]}  Nf6 {[%clk 0:02:53]} 3. Bf4 {[%clk 0:03:01]}  Bf5 {[%clk 0:02:52]} 4. f3 {[%clk 0:03:01]}  e6 {[%clk 0:02:52]} 5. g4 {[%clk 0:03:01]}  Bg6 {[%clk 0:02:52]} 6. Qd2 {[%clk 0:03:01]}  c5 {[%clk 0:02:48]} 7. Nb5 {[%clk 0:03:02]}  Na6 {[%clk 0:02:48]} 8. e3 {[%clk 0:03:02]}  Qb6 {[%clk 0:02:44]} 9. a4 {[%clk 0:03:02]}  Be7 {[%clk 0:02:38]} 10. c3 {[%clk 0:03:02]}  Nd7 {[%clk 0:02:05]} 11. h4 {[%clk 0:02:59]}  h5 {[%clk 0:02:01]} 12. g5 {[%clk 0:02:59]}  c4 {[%clk 0:01:57]} 13. Nh3 {[%clk 0:02:54]}  Rc8 {[%clk 0:01:51]} 14. Bg3 {[%clk 0:02:51]}  Nab8 {[%clk 0:01:45]} 15. Nf4 {[%clk 0:02:47]}  Bf5 {[%clk 0:01:45]} 16. g6 {[%clk 0:02:35]}  f6 {[%clk 0:01:44]} 17. Bh3 {[%clk 0:02:35]}  Bxh3 {[%clk 0:01:41]} 18. Rxh3 {[%clk 0:02:36]}  a6 {[%clk 0:01:37]} 19. Na3 {[%clk 0:02:36]}  Bxa3 {[%clk 0:01:36]} 20. Rxa3 {[%clk 0:02:37]}  Nf8 {[%clk 0:01:36]} 21. e4 {[%clk 0:02:36]}  dxe4 {[%clk 0:01:31]} 22. fxe4 {[%clk 0:02:37]}  Nbd7 {[%clk 0:01:30]} 23. Rh2 {[%clk 0:02:35]}  e5 {[%clk 0:01:22]} 24. Nd5 {[%clk 0:02:32]}  Qe6 {[%clk 0:01:22]} 25. Ne3 {[%clk 0:02:10]}  Nxg6 {[%clk 0:01:20]} 26. Nf5 {[%clk 0:02:10]}  Kf7 {[%clk 0:01:13]} 27. d5 {[%clk 0:02:10]}  Qb6 {[%clk 0:01:12]} 28. Bf2 {[%clk 0:02:11]}  Nc5 {[%clk 0:01:11]} 29. Rg2 {[%clk 0:02:10]}  Rhg8 {[%clk 0:01:09]} 30. d6 {[%clk 0:02:02]}  Nf4 {[%clk 0:01:06]} 31. Rg3 {[%clk 0:01:54]}  Qc6 {[%clk 0:01:01]} 32. Bxc5 {[%clk 0:01:43]}  Qxe4+ {[%clk 0:00:57]} 33. Be3 {[%clk 0:01:22]}  Nd3+ {[%clk 0:00:51]} 34. Kd1 {[%clk 0:01:20]}  Qxf5 {[%clk 0:00:48]} 35. b3 {[%clk 0:01:16]}  Rgd8 {[%clk 0:00:45]} 36. Qg2 {[%clk 0:01:13]}  g6 {[%clk 0:00:29]} 37. Rf3 {[%clk 0:01:13]}  Qg4 {[%clk 0:00:22]} 38. Qf1 {[%clk 0:01:04]}  e4 {[%clk 0:00:20]} 0-1


[Site "https://www.chess.com"]

[Event "Titled Tuesday Blitz March 08 Early 2022"]
[White "Flis, Pawel"]
[Black "Levin, Anthony"]
[WhiteFideId "1112864"]
[BlackFideId "30940680"]
[WhiteElo "1735"]
[BlackElo "1864"]
[Result "0-1"]
[Round "08"]
[TimeControl "180+1"]
[Date "2022.03.09"]
[WhiteClock "0:00:01"]
[BlackClock "0:00:04"]

1. e4 {[%clk 0:03:00]}  c5 {[%clk 0:02:54]} 2. Nf3 {[%clk 0:02:59]}  d6 {[%clk 0:02:53]} 3. d4 {[%clk 0:02:59]}  cxd4 {[%clk 0:02:54]} 4. Nxd4 {[%clk 0:03:00]}  Nf6 {[%clk 0:02:55]} 5. Nc3 {[%clk 0:03:00]}  a6 {[%clk 0:02:56]} 6. Bg5 {[%clk 0:03:00]}  Nbd7 {[%clk 0:02:55]} 7. f4 {[%clk 0:03:00]}  Qc7 {[%clk 0:02:55]} 8. Qf3 {[%clk 0:03:00]}  h6 {[%clk 0:02:55]} 9. Bh4 {[%clk 0:02:59]}  g5 {[%clk 0:02:55]} 10. fxg5 {[%clk 0:02:53]}  hxg5 {[%clk 0:02:56]} 11. Bxg5 {[%clk 0:02:52]}  Qc5 {[%clk 0:02:57]} 12. Be3 {[%clk 0:02:42]}  Ne5 {[%clk 0:02:56]} 13. Qe2 {[%clk 0:02:27]}  Neg4 {[%clk 0:02:55]} 14. Nf5 {[%clk 0:02:18]}  Nxe3 {[%clk 0:02:54]} 15. Qxe3 {[%clk 0:02:11]}  Qb4 {[%clk 0:02:44]} 16. Qd4 {[%clk 0:01:47]}  Qxb2 {[%clk 0:02:34]} 17. Nxd6+ {[%clk 0:01:18]}  exd6 {[%clk 0:02:30]} 18. Rb1 {[%clk 0:01:18]}  Qxc2 {[%clk 0:02:17]} 19. Qxf6 {[%clk 0:01:04]}  Rh6 {[%clk 0:02:05]} 20. Qd4 {[%clk 0:00:47]}  Be6 {[%clk 0:01:24]} 21. Rd1 {[%clk 0:00:44]}  Rc8 {[%clk 0:01:21]} 22. Qa4+ {[%clk 0:00:31]}  Qxa4 {[%clk 0:01:19]} 23. Nxa4 {[%clk 0:00:32]}  Bxa2 {[%clk 0:01:14]} 24. Nb6 {[%clk 0:00:31]}  Rc2 {[%clk 0:01:08]} 25. Rd2 {[%clk 0:00:21]}  Rc1+ {[%clk 0:01:04]} 26. Rd1 {[%clk 0:00:21]}  Rc6 {[%clk 0:01:02]} 27. Nd5 {[%clk 0:00:20]}  Re6 {[%clk 0:00:41]} 28. Be2 {[%clk 0:00:18]}  Rc2 {[%clk 0:00:24]} 29. Rd2 {[%clk 0:00:13]}  Rc1+ {[%clk 0:00:24]} 30. Rd1 {[%clk 0:00:13]}  Rxd1+ {[%clk 0:00:18]} 31. Kxd1 {[%clk 0:00:14]}  Kd8 {[%clk 0:00:08]} 32. Bf3 {[%clk 0:00:12]}  Bg7 {[%clk 0:00:07]} 33. Kc2 {[%clk 0:00:10]}  Bc4 {[%clk 0:00:07]} 34. Rb1 {[%clk 0:00:07]}  Bb5 {[%clk 0:00:07]} 35. Nf4 {[%clk 0:00:07]}  Re8 {[%clk 0:00:04]} 36. Nh5 {[%clk 0:00:06]}  Be5 {[%clk 0:00:04]} 37. Ng3 {[%clk 0:00:05]}  Bxg3 {[%clk 0:00:04]} 38. hxg3 {[%clk 0:00:05]}  Rg8 {[%clk 0:00:04]} 39. g4 {[%clk 0:00:04]}  Bc6 {[%clk 0:00:04]} 40. Rd1 {[%clk 0:00:05]}  Ke7 {[%clk 0:00:04]} 41. Kc3 {[%clk 0:00:04]}  f6 {[%clk 0:00:04]} 42. Kc4 {[%clk 0:00:03]}  Ra8 {[%clk 0:00:02]} 43. Kb4 {[%clk 0:00:03]}  Rc8 {[%clk 0:00:02]} 44. Ka5 {[%clk 0:00:03]}  Rc7 {[%clk 0:00:02]} 45. Kb6 {[%clk 0:00:02]}  Rd7 {[%clk 0:00:03]} 46. e5 {[%clk 0:00:02]}  fxe5 {[%clk 0:00:02]} 47. Bxc6 {[%clk 0:00:01]}  bxc6 {[%clk 0:00:03]} 48. Kxc6 {[%clk 0:00:01]}  e4 {[%clk 0:00:03]} 49. Re1 {[%clk 0:00:01]}  d5 {[%clk 0:00:04]} 0-1


[Site "https://www.chess.com"]

[Event "Titled Tuesday Blitz March 08 Early 2022"]
[White "Gabdrakhmanov, Azat"]
[Black "Chernomordik, Pavel"]
[WhiteFideId "34189197"]
[BlackFideId "2804530"]
[WhiteElo "2279"]
[BlackElo "2249"]
[Result "1/2-1/2"]
[Round "08"]
[TimeControl "180+1"]
[Date "2022.03.09"]
[WhiteClock "0:00:07"]
[BlackClock "0:00:07"]

1. e4 {[%clk 0:03:00]}  g6 {[%clk 0:02:59]} 2. d4 {[%clk 0:03:00]}  Bg7 {[%clk 0:02:59]} 3. Nc3 {[%clk 0:03:01]}  d6 {[%clk 0:02:59]} 4. f4 {[%clk 0:03:01]}  a6 {[%clk 0:02:59]} 5. Nf3 {[%clk 0:03:01]}  b5 {[%clk 0:02:59]} 6. Bd3 {[%clk 0:03:02]}  Nd7 {[%clk 0:02:59]} 7. Be3 {[%clk 0:03:00]}  Bb7 {[%clk 0:02:53]} 8. Qe2 {[%clk 0:03:00]}  c5 {[%clk 0:02:49]} 9. dxc5 {[%clk 0:03:01]}  Nxc5 {[%clk 0:02:47]} 10. Bxc5 {[%clk 0:03:01]}  Bxc3+ {[%clk 0:02:46]} 11. bxc3 {[%clk 0:03:01]}  dxc5 {[%clk 0:02:47]} 12. e5 {[%clk 0:02:56]}  Qc7 {[%clk 0:02:34]} 13. h4 {[%clk 0:02:39]}  e6 {[%clk 0:02:13]} 14. h5 {[%clk 0:02:34]}  Ne7 {[%clk 0:02:12]} 15. hxg6 {[%clk 0:02:32]}  fxg6 {[%clk 0:02:11]} 16. Ng5 {[%clk 0:02:25]}  Bd5 {[%clk 0:02:10]} 17. c4 {[%clk 0:02:10]}  Qa5+ {[%clk 0:01:59]} 18. Qd2 {[%clk 0:01:23]}  Qxd2+ {[%clk 0:01:56]} 19. Kxd2 {[%clk 0:01:24]}  bxc4 {[%clk 0:01:53]} 20. Be4 {[%clk 0:01:23]}  Kd7 {[%clk 0:01:37]} 21. Bxd5 {[%clk 0:01:12]}  Nxd5 {[%clk 0:01:28]} 22. g3 {[%clk 0:01:12]}  h5 {[%clk 0:01:16]} 23. Ne4 {[%clk 0:01:03]}  Kc6 {[%clk 0:01:15]} 24. Nd6 {[%clk 0:00:37]}  c3+ {[%clk 0:01:07]} 25. Kd3 {[%clk 0:00:36]}  h4 {[%clk 0:01:06]} 26. gxh4 {[%clk 0:00:29]}  Nxf4+ {[%clk 0:01:05]} 27. Ke4 {[%clk 0:00:27]}  Ng2 {[%clk 0:00:52]} 28. Rag1 {[%clk 0:00:17]}  Rxh4+ {[%clk 0:00:49]} 29. Rxh4 {[%clk 0:00:17]}  Nxh4 {[%clk 0:00:49]} 30. Rg4 {[%clk 0:00:18]}  Nf5 {[%clk 0:00:48]} 31. Rxg6 {[%clk 0:00:17]}  Nxd6+ {[%clk 0:00:45]} 32. exd6 {[%clk 0:00:16]}  Kxd6 {[%clk 0:00:45]} 33. Kd3 {[%clk 0:00:17]}  Rh8 {[%clk 0:00:41]} 34. Kxc3 {[%clk 0:00:17]}  Rh3+ {[%clk 0:00:40]} 35. Kb2 {[%clk 0:00:15]}  Kd5 {[%clk 0:00:32]} 36. Rg8 {[%clk 0:00:14]}  Rh7 {[%clk 0:00:27]} 37. Ra8 {[%clk 0:00:13]}  Rb7+ {[%clk 0:00:25]} 38. Kc3 {[%clk 0:00:13]}  Rb6 {[%clk 0:00:25]} 39. a4 {[%clk 0:00:13]}  e5 {[%clk 0:00:21]} 40. a5 {[%clk 0:00:13]}  Re6 {[%clk 0:00:20]} 41. Rd8+ {[%clk 0:00:11]}  Kc6 {[%clk 0:00:18]} 42. Rb8 {[%clk 0:00:12]}  e4 {[%clk 0:00:16]} 43. Rb6+ {[%clk 0:00:10]}  Kd5 {[%clk 0:00:16]} 44. Rb1 {[%clk 0:00:06]}  e3 {[%clk 0:00:15]} 45. Kd3 {[%clk 0:00:04]}  e2 {[%clk 0:00:13]} 46. c4+ {[%clk 0:00:04]}  Kc6 {[%clk 0:00:11]} 47. Rb6+ {[%clk 0:00:04]}  Kd7 {[%clk 0:00:10]} 48. Rxe6 {[%clk 0:00:04]}  Kxe6 {[%clk 0:00:10]} 49. Kxe2 {[%clk 0:00:05]}  Ke5 {[%clk 0:00:08]} 50. Ke3 {[%clk 0:00:05]}  Kf5 {[%clk 0:00:08]} 51. Kf3 {[%clk 0:00:06]}  Ke5 {[%clk 0:00:08]} 52. Ke3 {[%clk 0:00:06]}  Kf5 {[%clk 0:00:08]} 53. Kf3 {[%clk 0:00:06]}  Ke5 {[%clk 0:00:07]} 54. Ke3 {[%clk 0:00:07]} 1/2-1/2


[Site "https://www.chess.com"]

[Event "Titled Tuesday Blitz March 08 Early 2022"]
[White "Garv Gaur"]
[Black "parintele_chess"]
[WhiteFideId "45030839"]
[WhiteElo "1950"]
[BlackElo "2226"]
[Result "1-0"]
[Round "08"]
[TimeControl "180+1"]
[Date "2022.03.09"]
[WhiteClock "0:02:55"]
[BlackClock "0:02:28"]

1. d4 {[%clk 0:02:59]}  d5 {[%clk 0:02:59]} 2. Nf3 {[%clk 0:02:59]}  Nf6 {[%clk 0:02:58]} 3. c4 {[%clk 0:02:59]}  e6 {[%clk 0:02:57]} 4. g3 {[%clk 0:02:59]}  Be7 {[%clk 0:02:55]} 5. Bg2 {[%clk 0:02:59]}  O-O {[%clk 0:02:56]} 6. O-O {[%clk 0:02:58]}  dxc4 {[%clk 0:02:56]} 7. Qc2 {[%clk 0:02:58]}  a6 {[%clk 0:02:56]} 8. a4 {[%clk 0:02:57]}  Bd7 {[%clk 0:02:56]} 9. Ne5 {[%clk 0:02:57]}  Bc6 {[%clk 0:02:32]} 10. Nxc6 {[%clk 0:02:56]}  Nxc6 {[%clk 0:02:31]} 11. e3 {[%clk 0:02:57]}  b5 {[%clk 0:02:28]} 12. Bxc6 {[%clk 0:02:55]} 1-0


[Site "https://www.chess.com"]

[Event "Titled Tuesday Blitz March 08 Early 2022"]
[White "Gracia Alvarez, Gerardo Antonio"]
[Black "Csonka, Balazs"]
[WhiteFideId "5109124"]
[BlackFideId "742910"]
[WhiteElo "2139"]
[BlackElo "2404"]
[Result "1/2-1/2"]
[Round "08"]
[TimeControl "180+1"]
[Date "2022.03.09"]
[WhiteClock "0:00:03"]
[BlackClock "0:00:02"]

1. e4 {[%clk 0:02:59]}  c5 {[%clk 0:02:59]} 2. Nc3 {[%clk 0:02:59]}  e6 {[%clk 0:02:58]} 3. d4 {[%clk 0:02:59]}  cxd4 {[%clk 0:02:58]} 4. Qxd4 {[%clk 0:03:00]}  Nc6 {[%clk 0:02:58]} 5. Qe3 {[%clk 0:03:00]}  Nf6 {[%clk 0:02:56]} 6. Nf3 {[%clk 0:03:01]}  Bb4 {[%clk 0:02:13]} 7. Bd2 {[%clk 0:03:00]}  d6 {[%clk 0:02:12]} 8. O-O-O {[%clk 0:02:56]}  O-O {[%clk 0:02:06]} 9. h3 {[%clk 0:02:52]}  e5 {[%clk 0:01:55]} 10. Bd3 {[%clk 0:02:09]}  Be6 {[%clk 0:01:51]} 11. Kb1 {[%clk 0:01:50]}  Rc8 {[%clk 0:01:49]} 12. g4 {[%clk 0:01:46]}  Qa5 {[%clk 0:01:23]} 13. g5 {[%clk 0:01:34]}  Bxc3 {[%clk 0:01:07]} 14. Bxc3 {[%clk 0:01:24]}  Qxa2+ {[%clk 0:01:06]} 15. Kc1 {[%clk 0:01:24]}  Nh5 {[%clk 0:01:06]} 16. Kd2 {[%clk 0:01:20]}  d5 {[%clk 0:00:21]} 17. Ra1 {[%clk 0:00:53]}  d4 {[%clk 0:00:20]} 18. Nxd4 {[%clk 0:00:53]}  exd4 {[%clk 0:00:21]} 19. Bxd4 {[%clk 0:00:53]}  Nxd4 {[%clk 0:00:18]} 20. Rxa2 {[%clk 0:00:54]}  Nxc2 {[%clk 0:00:18]} 21. Bxc2 {[%clk 0:00:47]}  Rfd8+ {[%clk 0:00:06]} 22. Bd3 {[%clk 0:00:47]}  Bxa2 {[%clk 0:00:05]} 23. Rc1 {[%clk 0:00:40]}  Bc4 {[%clk 0:00:04]} 24. b3 {[%clk 0:00:28]}  Bxd3 {[%clk 0:00:02]} 25. Rxc8 {[%clk 0:00:25]}  Rxc8 {[%clk 0:00:03]} 26. Kxd3 {[%clk 0:00:24]}  g6 {[%clk 0:00:02]} 27. Qxa7 {[%clk 0:00:17]}  Nf4+ {[%clk 0:00:02]} 28. Ke3 {[%clk 0:00:18]}  Nxh3 {[%clk 0:00:02]} 29. Qxb7 {[%clk 0:00:17]}  Rc3+ {[%clk 0:00:02]} 30. Kd4 {[%clk 0:00:14]}  Rf3 {[%clk 0:00:02]} 31. Qb8+ {[%clk 0:00:10]}  Kg7 {[%clk 0:00:02]} 32. Qe5+ {[%clk 0:00:08]}  Kg8 {[%clk 0:00:03]} 33. b4 {[%clk 0:00:07]}  Nxf2 {[%clk 0:00:03]} 34. Qe8+ {[%clk 0:00:07]}  Kg7 {[%clk 0:00:03]} 35. Qe5+ {[%clk 0:00:07]}  Kg8 {[%clk 0:00:03]} 36. b5 {[%clk 0:00:07]}  Rd3+ {[%clk 0:00:03]} 37. Kc4 {[%clk 0:00:07]}  Rd1 {[%clk 0:00:03]} 38. b6 {[%clk 0:00:05]}  Rc1+ {[%clk 0:00:03]} 39. Kb5 {[%clk 0:00:06]}  Nd3 {[%clk 0:00:03]} 40. Qe8+ {[%clk 0:00:05]}  Kg7 {[%clk 0:00:03]} 41. b7 {[%clk 0:00:05]}  Rb1+ {[%clk 0:00:03]} 42. Kc6 {[%clk 0:00:05]}  Nb4+ {[%clk 0:00:04]} 43. Kd7 {[%clk 0:00:03]}  Na6 {[%clk 0:00:03]} 44. Kc6 {[%clk 0:00:03]}  Nb4+ {[%clk 0:00:01]} 45. Kc5 {[%clk 0:00:04]}  Na6+ {[%clk 0:00:02]} 46. Kc6 {[%clk 0:00:03]}  Nb4+ {[%clk 0:00:02]} 1/2-1/2


[Site "https://www.chess.com"]

[Event "Titled Tuesday Blitz March 08 Early 2022"]
[White "Hernandez Jimenez, Alexander Andres"]
[Black "Mkrtchyan, Mariam"]
[WhiteFideId "3900452"]
[BlackFideId "13310828"]
[WhiteElo "2082"]
[BlackElo "1984"]
[Result "0-1"]
[Round "08"]
[TimeControl "180+1"]
[Date "2022.03.09"]
[WhiteClock "0:02:00"]
[BlackClock "0:02:36"]

1. e4 {[%clk 0:03:00]}  c6 {[%clk 0:02:59]} 2. d4 {[%clk 0:02:56]}  d5 {[%clk 0:02:59]} 3. exd5 {[%clk 0:02:57]}  cxd5 {[%clk 0:02:58]} 4. Bd3 {[%clk 0:02:57]}  Nc6 {[%clk 0:02:56]} 5. c3 {[%clk 0:02:58]}  Qc7 {[%clk 0:02:56]} 6. Ne2 {[%clk 0:02:56]}  Bg4 {[%clk 0:02:55]} 7. f3 {[%clk 0:02:56]}  Bd7 {[%clk 0:02:54]} 8. Bf4 {[%clk 0:02:55]}  e5 {[%clk 0:02:54]} 9. dxe5 {[%clk 0:02:56]}  Nxe5 {[%clk 0:02:55]} 10. Bc2 {[%clk 0:02:53]}  Nf6 {[%clk 0:02:52]} 11. O-O {[%clk 0:02:47]}  Bd6 {[%clk 0:02:46]} 12. Kh1 {[%clk 0:02:47]}  h6 {[%clk 0:02:43]} 13. Nd2 {[%clk 0:02:45]}  O-O {[%clk 0:02:42]} 14. Nd4 {[%clk 0:02:42]}  Rfe8 {[%clk 0:02:39]} 15. N2b3 {[%clk 0:02:05]}  Nc4 {[%clk 0:02:38]} 16. Qc1 {[%clk 0:02:00]}  Bxf4 {[%clk 0:02:36]} 0-1


[Site "https://www.chess.com"]

[Event "Titled Tuesday Blitz March 08 Early 2022"]
[White "Hoffmann, Asa"]
[Black "Tasev, Dejan"]
[WhiteFideId "2001470"]
[BlackFideId "936618"]
[WhiteElo "2117"]
[BlackElo "2253"]
[Result "1-0"]
[Round "08"]
[TimeControl "180+1"]
[Date "2022.03.09"]
[WhiteClock "0:00:29"]
[BlackClock "0:00:21"]

1. d4 {[%clk 0:02:58]}  Nf6 {[%clk 0:02:58]} 2. Bg5 {[%clk 0:02:55]}  e6 {[%clk 0:02:58]} 3. Nd2 {[%clk 0:02:55]}  d5 {[%clk 0:02:56]} 4. e3 {[%clk 0:02:54]}  b6 {[%clk 0:02:56]} 5. c3 {[%clk 0:02:48]}  Bb7 {[%clk 0:02:55]} 6. Bd3 {[%clk 0:02:48]}  Nbd7 {[%clk 0:02:55]} 7. f4 {[%clk 0:02:48]}  h6 {[%clk 0:02:55]} 8. Bh4 {[%clk 0:02:48]}  g5 {[%clk 0:02:55]} 9. fxg5 {[%clk 0:02:46]}  hxg5 {[%clk 0:02:55]} 10. Bxg5 {[%clk 0:02:36]}  Be7 {[%clk 0:02:52]} 11. Ngf3 {[%clk 0:02:32]}  Ng4 {[%clk 0:02:50]} 12. Bxe7 {[%clk 0:02:29]}  Qxe7 {[%clk 0:02:49]} 13. Qe2 {[%clk 0:02:29]}  O-O-O {[%clk 0:02:49]} 14. h3 {[%clk 0:02:21]}  Ngf6 {[%clk 0:02:47]} 15. O-O-O {[%clk 0:02:17]}  e5 {[%clk 0:02:46]} 16. Bf5 {[%clk 0:02:12]}  Kb8 {[%clk 0:02:45]} 17. Bxd7 {[%clk 0:02:09]}  Nxd7 {[%clk 0:02:45]} 18. Rhf1 {[%clk 0:02:00]}  e4 {[%clk 0:02:45]} 19. Nh2 {[%clk 0:01:59]}  a5 {[%clk 0:02:43]} 20. Ng4 {[%clk 0:01:52]}  Ka7 {[%clk 0:02:40]} 21. Rf4 {[%clk 0:01:49]}  Ba6 {[%clk 0:02:36]} 22. Qf2 {[%clk 0:01:49]}  Rh7 {[%clk 0:02:33]} 23. Kb1 {[%clk 0:01:34]}  Bd3+ {[%clk 0:02:33]} 24. Ka1 {[%clk 0:01:34]}  a4 {[%clk 0:02:33]} 25. Nf1 {[%clk 0:01:25]}  c5 {[%clk 0:02:29]} 26. Ng3 {[%clk 0:01:25]}  cxd4 {[%clk 0:02:26]} 27. exd4 {[%clk 0:01:21]}  a3 {[%clk 0:02:26]} 28. Ne3 {[%clk 0:01:20]}  axb2+ {[%clk 0:02:11]} 29. Qxb2 {[%clk 0:01:19]}  Qd6 {[%clk 0:02:08]} 30. Rg4 {[%clk 0:01:12]}  Nf6 {[%clk 0:01:55]} 31. Ngf5 {[%clk 0:01:11]}  Qc6 {[%clk 0:01:53]} 32. Rf4 {[%clk 0:01:10]}  Rd7 {[%clk 0:01:42]} 33. Rf2 {[%clk 0:01:08]}  Rh8 {[%clk 0:01:41]} 34. Qa3+ {[%clk 0:01:07]}  Kb7 {[%clk 0:01:38]} 35. Rb2 {[%clk 0:01:06]}  Ra8 {[%clk 0:01:36]} 36. Qb3 {[%clk 0:01:05]}  Rc7 {[%clk 0:01:20]} 37. Rc1 {[%clk 0:01:02]}  Ra5 {[%clk 0:01:16]} 38. g4 {[%clk 0:01:00]}  Rb5 {[%clk 0:01:06]} 39. Qa3 {[%clk 0:00:59]}  Rxb2 {[%clk 0:01:05]} 40. Qxb2 {[%clk 0:00:59]}  Ne8 {[%clk 0:00:59]} 41. h4 {[%clk 0:00:55]}  Nd6 {[%clk 0:00:59]} 42. Nxd6+ {[%clk 0:00:53]}  Qxd6 {[%clk 0:00:58]} 43. c4 {[%clk 0:00:49]}  dxc4 {[%clk 0:00:55]} 44. d5 {[%clk 0:00:47]}  Qf4 {[%clk 0:00:46]} 45. Qd4 {[%clk 0:00:45]}  c3 {[%clk 0:00:40]} 46. d6 {[%clk 0:00:43]}  Rd7 {[%clk 0:00:38]} 47. Qd5+ {[%clk 0:00:41]}  Kb8 {[%clk 0:00:35]} 48. Qd4 {[%clk 0:00:37]}  Rxd6 {[%clk 0:00:33]} 49. Qxc3 {[%clk 0:00:37]}  Qxe3 {[%clk 0:00:24]} 50. Qc7+ {[%clk 0:00:35]}  Ka8 {[%clk 0:00:24]} 51. Qc8+ {[%clk 0:00:31]}  Ka7 {[%clk 0:00:21]} 52. Rc7# {[%clk 0:00:29]} 1-0


[Site "https://www.chess.com"]